[Event "Titled Tuesday Blitz October 25 Late 2022"]
[White "Forgacs, Attila Jr."]
[Black "Polster, Christian"]
[WhiteFideId "773654"]
[BlackFideId "12965081"]
[WhiteElo "2168"]
[BlackElo "2209"]
[Result "0-1"]
[Round "05"]
[TimeControl "180+1"]
[Date "2022.10.26"]
[WhiteClock "0:00:12"]
[BlackClock "0:00:08"]

1. e4 {[%clk 0:03:00]}  c6 {[%clk 0:02:57]} 2. d4 {[%clk 0:03:00]}  d5 {[%clk 0:02:27]} 3. e5 {[%clk 0:02:59]}  Bf5 {[%clk 0:02:10]} 4. h4 {[%clk 0:02:58]}  h5 {[%clk 0:02:09]} 5. Bd3 {[%clk 0:02:58]}  Bxd3 {[%clk 0:01:57]} 6. Qxd3 {[%clk 0:02:59]}  e6 {[%clk 0:01:57]} 7. Bg5 {[%clk 0:02:59]}  Qb6 {[%clk 0:01:56]} 8. Nd2 {[%clk 0:02:58]}  c5 {[%clk 0:01:39]} 9. c4 {[%clk 0:02:57]}  Qxb2 {[%clk 0:01:24]} 10. Rd1 {[%clk 0:02:56]}  Qxd4 {[%clk 0:01:20]} 11. Qc2 {[%clk 0:02:45]}  Qxe5+ {[%clk 0:01:19]} 12. Ne2 {[%clk 0:02:43]}  d4 {[%clk 0:01:02]} 13. Rb1 {[%clk 0:02:07]}  Qc7 {[%clk 0:00:55]} 14. Bf4 {[%clk 0:01:35]}  e5 {[%clk 0:00:45]} 15. Qe4 {[%clk 0:01:31]}  Nc6 {[%clk 0:00:42]} 16. Bg3 {[%clk 0:01:11]}  Nf6 {[%clk 0:00:38]} 17. Qf5 {[%clk 0:01:11]}  Bd6 {[%clk 0:00:29]} 18. O-O {[%clk 0:01:09]}  O-O {[%clk 0:00:26]} 19. Qg5 {[%clk 0:01:03]}  Rab8 {[%clk 0:00:16]} 20. Bh2 {[%clk 0:00:57]}  e4 {[%clk 0:00:14]} 21. Bxd6 {[%clk 0:00:56]}  Qxd6 {[%clk 0:00:15]} 22. Nf4 {[%clk 0:00:39]}  Qe5 {[%clk 0:00:15]} 23. Qg3 {[%clk 0:00:37]}  Rfe8 {[%clk 0:00:12]} 24. Rfe1 {[%clk 0:00:36]}  Qf5 {[%clk 0:00:11]} 25. Rb5 {[%clk 0:00:28]}  b6 {[%clk 0:00:11]} 26. Nh3 {[%clk 0:00:27]}  Nb4 {[%clk 0:00:09]} 27. Ng5 {[%clk 0:00:21]}  a6 {[%clk 0:00:08]} 28. Rxb4 {[%clk 0:00:20]}  cxb4 {[%clk 0:00:09]} 29. c5 {[%clk 0:00:17]}  bxc5 {[%clk 0:00:08]} 30. Qb3 {[%clk 0:00:18]}  Qd5 {[%clk 0:00:07]} 31. Qd1 {[%clk 0:00:16]}  e3 {[%clk 0:00:07]} 32. fxe3 {[%clk 0:00:14]}  dxe3 {[%clk 0:00:08]} 33. Ndf3 {[%clk 0:00:11]}  Qxd1 {[%clk 0:00:08]} 34. Rxd1 {[%clk 0:00:12]}  e2 {[%clk 0:00:08]} 35. Re1 {[%clk 0:00:13]}  c4 {[%clk 0:00:08]} 36. Kf2 {[%clk 0:00:14]}  c3 {[%clk 0:00:09]} 37. Rxe2 {[%clk 0:00:15]}  Rxe2+ {[%clk 0:00:09]} 38. Kxe2 {[%clk 0:00:15]}  a5 {[%clk 0:00:09]} 39. Kd3 {[%clk 0:00:16]}  a4 {[%clk 0:00:10]} 40. Kc2 {[%clk 0:00:17]}  Nd5 {[%clk 0:00:09]} 41. Ne4 {[%clk 0:00:16]}  b3+ {[%clk 0:00:10]} 42. axb3 {[%clk 0:00:16]}  axb3+ {[%clk 0:00:10]} 43. Kb1 {[%clk 0:00:16]}  c2+ {[%clk 0:00:11]} 44. Kb2 {[%clk 0:00:16]}  Nb4 {[%clk 0:00:11]} 45. Nc5 {[%clk 0:00:11]}  Na2 {[%clk 0:00:09]} 46. Nxb3 {[%clk 0:00:11]}  c1=Q+ {[%clk 0:00:08]} 47. Kxa2 {[%clk 0:00:12]}  Ra8+ {[%clk 0:00:08]} 0-1


[Site "https://www.chess.com"]

[Event "Titled Tuesday Blitz October 25 Late 2022"]
[White "Gardezi, Arsal"]
[Black "Silva Rosas, Natalia"]
[WhiteFideId "30949521"]
[BlackFideId "3000575"]
[WhiteElo "1906"]
[BlackElo "1752"]
[Result "1-0"]
[Round "05"]
[TimeControl "180+1"]
[Date "2022.10.26"]
[WhiteClock "0:00:22"]
[BlackClock "0:00:16"]

1. Nf3 {[%clk 0:03:00]}  f5 {[%clk 0:02:56]} 2. d4 {[%clk 0:03:00]}  Nf6 {[%clk 0:02:56]} 3. c4 {[%clk 0:03:00]}  g6 {[%clk 0:02:56]} 4. Nc3 {[%clk 0:03:00]}  Bg7 {[%clk 0:02:57]} 5. Bf4 {[%clk 0:02:56]}  d6 {[%clk 0:02:57]} 6. e3 {[%clk 0:02:55]}  O-O {[%clk 0:02:57]} 7. Bd3 {[%clk 0:02:54]}  Qe8 {[%clk 0:02:57]} 8. O-O {[%clk 0:02:54]}  c6 {[%clk 0:02:57]} 9. e4 {[%clk 0:02:52]}  fxe4 {[%clk 0:02:54]} 10. Nxe4 {[%clk 0:02:53]}  Bg4 {[%clk 0:02:44]} 11. h3 {[%clk 0:02:44]}  Nxe4 {[%clk 0:02:41]} 12. Bxe4 {[%clk 0:02:26]}  Rxf4 {[%clk 0:02:35]} 13. hxg4 {[%clk 0:02:25]}  Rxe4 {[%clk 0:02:34]} 14. Re1 {[%clk 0:02:25]}  Rxg4 {[%clk 0:02:25]} 15. Qe2 {[%clk 0:02:12]}  e5 {[%clk 0:02:04]} 16. dxe5 {[%clk 0:02:05]}  d5 {[%clk 0:02:01]} 17. cxd5 {[%clk 0:01:57]}  cxd5 {[%clk 0:02:00]} 18. e6 {[%clk 0:01:56]}  Re4 {[%clk 0:01:58]} 19. Qd3 {[%clk 0:01:55]}  Qxe6 {[%clk 0:01:51]} 20. Rxe4 {[%clk 0:01:34]}  Qxe4 {[%clk 0:01:51]} 21. Qb3 {[%clk 0:01:34]}  Nd7 {[%clk 0:01:34]} 22. Re1 {[%clk 0:01:33]}  Qc4 {[%clk 0:01:31]} 23. Qxb7 {[%clk 0:01:33]}  Qc8 {[%clk 0:01:11]} 24. Qxd5+ {[%clk 0:01:32]}  Kh8 {[%clk 0:01:12]} 25. Ng5 {[%clk 0:01:31]}  Ne5 {[%clk 0:00:46]} 26. Rxe5 {[%clk 0:01:24]}  Qc1+ {[%clk 0:00:36]} 27. Kh2 {[%clk 0:01:21]}  Bxe5+ {[%clk 0:00:33]} 28. Qxe5+ {[%clk 0:01:19]}  Kg8 {[%clk 0:00:31]} 29. Qd5+ {[%clk 0:01:13]}  Kg7 {[%clk 0:00:29]} 30. Ne6+ {[%clk 0:00:35]}  Kf6 {[%clk 0:00:24]} 31. Qxa8 {[%clk 0:00:22]}  Kxe6 {[%clk 0:00:24]} 32. Qxa7 {[%clk 0:00:20]}  Qf4+ {[%clk 0:00:20]} 33. g3 {[%clk 0:00:20]}  Qh6+ {[%clk 0:00:19]} 34. Kg2 {[%clk 0:00:20]}  Qg5 {[%clk 0:00:18]} 35. Qe3+ {[%clk 0:00:21]}  Qxe3 {[%clk 0:00:17]} 36. fxe3 {[%clk 0:00:22]}  Kd5 {[%clk 0:00:17]} 37. Kf3 {[%clk 0:00:22]}  h5 {[%clk 0:00:17]} 38. e4+ {[%clk 0:00:22]}  Ke5 {[%clk 0:00:17]} 39. a4 {[%clk 0:00:22]}  g5 {[%clk 0:00:17]} 40. a5 {[%clk 0:00:22]}  g4+ {[%clk 0:00:18]} 41. Kg2 {[%clk 0:00:22]}  Kxe4 {[%clk 0:00:18]} 42. a6 {[%clk 0:00:23]}  Kd5 {[%clk 0:00:18]} 43. a7 {[%clk 0:00:23]}  h4 {[%clk 0:00:17]} 44. a8=Q+ {[%clk 0:00:24]}  Kd4 {[%clk 0:00:16]} 45. gxh4 {[%clk 0:00:24]}  g3 {[%clk 0:00:16]} 46. b3 {[%clk 0:00:25]}  Kd3 {[%clk 0:00:16]} 47. Qa4 {[%clk 0:00:26]}  Kc2 {[%clk 0:00:16]} 48. Qc4+ {[%clk 0:00:26]}  Kb2 {[%clk 0:00:17]} 49. Qd3 {[%clk 0:00:26]}  Ka3 {[%clk 0:00:17]} 50. Qb5 {[%clk 0:00:26]}  Kb2 {[%clk 0:00:17]} 51. b4 {[%clk 0:00:25]}  Ka3 {[%clk 0:00:17]} 52. h5 {[%clk 0:00:22]}  Ka2 {[%clk 0:00:17]} 53. h6 {[%clk 0:00:22]}  Kb1 {[%clk 0:00:16]} 54. Qe2 {[%clk 0:00:22]}  Ka1 {[%clk 0:00:16]} 55. b5 {[%clk 0:00:22]}  Kb1 {[%clk 0:00:16]} 56. b6 {[%clk 0:00:22]} 1-0


[Site "https://www.chess.com"]

[Event "Titled Tuesday Blitz October 25 Late 2022"]
[White "Gedgafov, Chamal"]
[Black "Novik, Maxim"]
[WhiteFideId "34130621"]
[BlackFideId "4102924"]
[WhiteElo "2067"]
[BlackElo "2312"]
[Result "0-1"]
[Round "05"]
[TimeControl "180+1"]
[Date "2022.10.26"]
[WhiteClock "0:01:32"]
[BlackClock "0:01:24"]

1. c4 {[%clk 0:03:00]}  c5 {[%clk 0:02:59]} 2. g3 {[%clk 0:03:00]}  g6 {[%clk 0:02:59]} 3. Bg2 {[%clk 0:03:00]}  Bg7 {[%clk 0:02:59]} 4. Nc3 {[%clk 0:03:00]}  Nc6 {[%clk 0:02:59]} 5. Rb1 {[%clk 0:02:57]}  e6 {[%clk 0:02:55]} 6. e3 {[%clk 0:02:56]}  Nge7 {[%clk 0:02:51]} 7. Nge2 {[%clk 0:02:56]}  d5 {[%clk 0:02:50]} 8. cxd5 {[%clk 0:02:56]}  exd5 {[%clk 0:02:50]} 9. d4 {[%clk 0:02:57]}  cxd4 {[%clk 0:02:50]} 10. Nxd4 {[%clk 0:02:56]}  Nxd4 {[%clk 0:02:50]} 11. exd4 {[%clk 0:02:57]}  O-O {[%clk 0:02:50]} 12. O-O {[%clk 0:02:57]}  Bf5 {[%clk 0:02:50]} 13. Ra1 {[%clk 0:02:57]}  Rc8 {[%clk 0:02:47]} 14. Be3 {[%clk 0:02:55]}  Qb6 {[%clk 0:02:43]} 15. Nxd5 {[%clk 0:02:50]}  Nxd5 {[%clk 0:02:43]} 16. Bxd5 {[%clk 0:02:51]}  Rfd8 {[%clk 0:02:43]} 17. Qf3 {[%clk 0:02:40]}  Qxb2 {[%clk 0:02:15]} 18. Bxb7 {[%clk 0:02:38]}  Rc7 {[%clk 0:02:14]} 19. Be4 {[%clk 0:02:33]}  Bxe4 {[%clk 0:01:57]} 20. Qxe4 {[%clk 0:02:34]}  Bxd4 {[%clk 0:01:57]} 21. Bxd4 {[%clk 0:02:33]}  Qxd4 {[%clk 0:01:54]} 22. Qxd4 {[%clk 0:02:30]}  Rxd4 {[%clk 0:01:54]} 23. Rfd1 {[%clk 0:02:31]}  Rxd1+ {[%clk 0:01:51]} 24. Rxd1 {[%clk 0:02:31]}  Rc2 {[%clk 0:01:51]} 25. Ra1 {[%clk 0:02:20]}  a5 {[%clk 0:01:49]} 26. a4 {[%clk 0:02:20]}  Rc4 {[%clk 0:01:48]} 27. Ra3 {[%clk 0:02:19]}  g5 {[%clk 0:01:47]} 28. Kg2 {[%clk 0:02:20]}  g4 {[%clk 0:01:46]} 29. h3 {[%clk 0:02:19]}  h5 {[%clk 0:01:46]} 30. hxg4 {[%clk 0:02:19]}  hxg4 {[%clk 0:01:46]} 31. Kf1 {[%clk 0:02:18]}  Re4 {[%clk 0:01:46]} 32. Kg2 {[%clk 0:02:15]}  Kg7 {[%clk 0:01:46]} 33. Ra1 {[%clk 0:02:14]}  f5 {[%clk 0:01:44]} 34. Ra3 {[%clk 0:02:13]}  Kf6 {[%clk 0:01:44]} 35. Ra1 {[%clk 0:02:13]}  Ke6 {[%clk 0:01:44]} 36. Ra3 {[%clk 0:02:12]}  Kd5 {[%clk 0:01:44]} 37. f3 {[%clk 0:02:08]}  Re2+ {[%clk 0:01:34]} 38. Kf1 {[%clk 0:02:08]}  Rd2 {[%clk 0:01:32]} 39. fxg4 {[%clk 0:02:08]}  fxg4 {[%clk 0:01:32]} 40. Rb3 {[%clk 0:02:05]}  Ke4 {[%clk 0:01:31]} 41. Rb5 {[%clk 0:01:56]}  Rd5 {[%clk 0:01:30]} 42. Rxd5 {[%clk 0:01:26]}  Kxd5 {[%clk 0:01:28]} 43. Ke2 {[%clk 0:01:27]}  Kc4 {[%clk 0:01:28]} 44. Ke3 {[%clk 0:01:27]}  Kb4 {[%clk 0:01:26]} 45. Kf4 {[%clk 0:01:28]}  Kxa4 {[%clk 0:01:26]} 46. Kxg4 {[%clk 0:01:29]}  Kb5 {[%clk 0:01:26]} 47. Kf5 {[%clk 0:01:30]}  a4 {[%clk 0:01:26]} 48. g4 {[%clk 0:01:31]}  a3 {[%clk 0:01:26]} 49. g5 {[%clk 0:01:32]}  a2 {[%clk 0:01:26]} 50. g6 {[%clk 0:01:33]}  a1=Q {[%clk 0:01:25]} 51. Ke6 {[%clk 0:01:32]}  Qg7 {[%clk 0:01:24]} 0-1


[Site "https://www.chess.com"]

[Event "Titled Tuesday Blitz October 25 Late 2022"]
[White "Gireman, Ja"]
[Black "Sadhwani, Raunak"]
[WhiteFideId "5043794"]
[BlackFideId "35093487"]
[WhiteElo "2153"]
[BlackElo "2656"]
[Result "0-1"]
[Round "05"]
[TimeControl "180+1"]
[Date "2022.10.26"]
[WhiteClock "0:00:17"]
[BlackClock "0:01:19"]

1. e4 {[%clk 0:03:00]}  g6 {[%clk 0:02:58]} 2. d4 {[%clk 0:03:00]}  d6 {[%clk 0:02:59]} 3. h4 {[%clk 0:03:01]}  Nf6 {[%clk 0:02:57]} 4. Nc3 {[%clk 0:03:01]}  Bg7 {[%clk 0:02:56]} 5. Nf3 {[%clk 0:02:58]}  Bg4 {[%clk 0:02:55]} 6. Be2 {[%clk 0:02:58]}  Nc6 {[%clk 0:02:54]} 7. Be3 {[%clk 0:02:57]}  e5 {[%clk 0:02:51]} 8. Qd2 {[%clk 0:02:13]}  Bxf3 {[%clk 0:02:47]} 9. Bxf3 {[%clk 0:02:14]}  exd4 {[%clk 0:02:47]} 10. Bxd4 {[%clk 0:02:14]}  Nxd4 {[%clk 0:02:38]} 11. Qxd4 {[%clk 0:02:13]}  O-O {[%clk 0:02:39]} 12. Qd2 {[%clk 0:01:52]}  Nd7 {[%clk 0:02:17]} 13. h5 {[%clk 0:01:47]}  Re8 {[%clk 0:02:15]} 14. hxg6 {[%clk 0:01:45]}  hxg6 {[%clk 0:02:16]} 15. O-O-O {[%clk 0:01:41]}  Qf6 {[%clk 0:02:16]} 16. Rh3 {[%clk 0:01:13]}  Nb6 {[%clk 0:02:13]} 17. Qd3 {[%clk 0:00:54]}  Rad8 {[%clk 0:01:58]} 18. Rdh1 {[%clk 0:00:52]}  c6 {[%clk 0:01:57]} 19. Kb1 {[%clk 0:00:36]}  Nd7 {[%clk 0:01:57]} 20. Nd1 {[%clk 0:00:35]}  Nc5 {[%clk 0:01:53]} 21. Qc4 {[%clk 0:00:35]}  b5 {[%clk 0:01:53]} 22. Qb4 {[%clk 0:00:34]}  a5 {[%clk 0:01:50]} 23. Qxa5 {[%clk 0:00:30]}  Nxe4 {[%clk 0:01:42]} 24. Bxe4 {[%clk 0:00:22]}  Rxe4 {[%clk 0:01:43]} 25. Rf3 {[%clk 0:00:19]}  Qe7 {[%clk 0:01:41]} 26. Re3 {[%clk 0:00:19]}  Rxe3 {[%clk 0:01:39]} 27. Nxe3 {[%clk 0:00:20]}  Qf6 {[%clk 0:01:39]} 28. c3 {[%clk 0:00:19]}  Re8 {[%clk 0:01:39]} 29. Rd1 {[%clk 0:00:19]}  Qxf2 {[%clk 0:01:38]} 30. Nc2 {[%clk 0:00:20]}  Qxg2 {[%clk 0:01:34]} 31. a4 {[%clk 0:00:19]}  Re2 {[%clk 0:01:27]} 32. Qd8+ {[%clk 0:00:19]}  Bf8 {[%clk 0:01:28]} 33. Rc1 {[%clk 0:00:18]}  bxa4 {[%clk 0:01:26]} 34. Qb8 {[%clk 0:00:19]}  Qe4 {[%clk 0:01:23]} 35. Qa8 {[%clk 0:00:19]}  a3 {[%clk 0:01:20]} 36. Qxa3 {[%clk 0:00:17]}  Bh6 {[%clk 0:01:20]} 37. Qa8+ {[%clk 0:00:17]}  Kg7 {[%clk 0:01:19]} 0-1


[Site "https://www.chess.com"]

[Event "Titled Tuesday Blitz October 25 Late 2022"]
[White "Golubev, Mikhail"]
[Black "Rios Escobar, Adan"]
[WhiteFideId "14100983"]
[BlackFideId "3403645"]
[WhiteElo "2374"]
[BlackElo "2362"]
[Result "1-0"]
[Round "05"]
[TimeControl "180+1"]
[Date "2022.10.26"]
[WhiteClock "0:01:04"]
[BlackClock "0:00:34"]

1. e4 {[%clk 0:03:00]}  c5 {[%clk 0:02:57]} 2. Nf3 {[%clk 0:03:00]}  d6 {[%clk 0:02:57]} 3. d4 {[%clk 0:02:59]}  cxd4 {[%clk 0:02:58]} 4. Nxd4 {[%clk 0:02:59]}  Nf6 {[%clk 0:02:59]} 5. Nc3 {[%clk 0:02:59]}  a6 {[%clk 0:02:59]} 6. Bc4 {[%clk 0:02:59]}  e6 {[%clk 0:02:59]} 7. O-O {[%clk 0:02:59]}  b5 {[%clk 0:03:00]} 8. Bb3 {[%clk 0:02:58]}  Bb7 {[%clk 0:03:00]} 9. Re1 {[%clk 0:02:57]}  Qd7 {[%clk 0:03:01]} 10. f4 {[%clk 0:02:31]}  Nc6 {[%clk 0:02:50]} 11. f5 {[%clk 0:02:08]}  Nxd4 {[%clk 0:02:48]} 12. Qxd4 {[%clk 0:02:09]}  e5 {[%clk 0:02:48]} 13. Qd3 {[%clk 0:02:08]}  Be7 {[%clk 0:02:38]} 14. Bg5 {[%clk 0:02:02]}  Rc8 {[%clk 0:02:03]} 15. Bxf6 {[%clk 0:01:55]}  Bxf6 {[%clk 0:02:01]} 16. Bd5 {[%clk 0:01:54]}  Bd8 {[%clk 0:01:55]} 17. Bxb7 {[%clk 0:01:52]}  Qxb7 {[%clk 0:01:52]} 18. Nd5 {[%clk 0:01:52]}  Bb6+ {[%clk 0:01:49]} 19. Kh1 {[%clk 0:01:51]}  f6 {[%clk 0:01:35]} 20. a4 {[%clk 0:01:44]}  Rc4 {[%clk 0:01:20]} 21. axb5 {[%clk 0:01:40]}  axb5 {[%clk 0:01:19]} 22. Nxb6 {[%clk 0:01:32]}  Qxb6 {[%clk 0:01:09]} 23. Ra8+ {[%clk 0:01:31]}  Ke7 {[%clk 0:01:08]} 24. Rxh8 {[%clk 0:01:31]}  Rd4 {[%clk 0:01:04]} 25. Qg3 {[%clk 0:01:20]}  g5 {[%clk 0:00:42]} 26. fxg6 {[%clk 0:01:18]}  Qa5 {[%clk 0:00:42]} 27. Rxh7+ {[%clk 0:01:12]}  Kf8 {[%clk 0:00:40]} 28. g7+ {[%clk 0:01:11]}  Kf7 {[%clk 0:00:34]} 29. g8=Q# {[%clk 0:01:04]} 1-0


[Site "https://www.chess.com"]

[Event "Titled Tuesday Blitz October 25 Late 2022"]
[White "Goncalves, Davi Sulzbacher"]
[Black "Thomforde-Toates, Noah"]
[WhiteFideId "2154510"]
[BlackFideId "30951992"]
[WhiteElo "2182"]
[BlackElo "2664"]
[Result "1/2-1/2"]
[Round "05"]
[TimeControl "180+1"]
[Date "2022.10.26"]
[WhiteClock "0:00:06"]
[BlackClock "0:00:17"]

1. Nf3 {[%clk 0:02:56]}  Nf6 {[%clk 0:02:56]} 2. g3 {[%clk 0:02:56]}  g6 {[%clk 0:02:53]} 3. Bg2 {[%clk 0:02:56]}  Bg7 {[%clk 0:02:54]} 4. O-O {[%clk 0:02:56]}  O-O {[%clk 0:02:53]} 5. d4 {[%clk 0:02:57]}  d6 {[%clk 0:02:53]} 6. c4 {[%clk 0:02:57]}  Nc6 {[%clk 0:02:54]} 7. Nc3 {[%clk 0:02:58]}  e5 {[%clk 0:02:53]} 8. Qc2 {[%clk 0:02:57]}  exd4 {[%clk 0:02:43]} 9. Nb5 {[%clk 0:02:57]}  Bf5 {[%clk 0:02:41]} 10. Qd1 {[%clk 0:02:49]}  Qd7 {[%clk 0:02:33]} 11. Nbxd4 {[%clk 0:02:47]}  Nxd4 {[%clk 0:02:31]} 12. Nxd4 {[%clk 0:02:48]}  Bh3 {[%clk 0:02:30]} 13. Bf4 {[%clk 0:02:23]}  Bxg2 {[%clk 0:02:28]} 14. Kxg2 {[%clk 0:02:24]}  Rfe8 {[%clk 0:02:19]} 15. Qd3 {[%clk 0:02:23]}  d5 {[%clk 0:02:10]} 16. c5 {[%clk 0:01:40]}  c6 {[%clk 0:02:08]} 17. Rac1 {[%clk 0:01:33]}  h5 {[%clk 0:01:56]} 18. h3 {[%clk 0:01:31]}  h4 {[%clk 0:01:51]} 19. g4 {[%clk 0:01:30]}  Nxg4 {[%clk 0:01:48]} 20. Nf3 {[%clk 0:01:16]}  Re4 {[%clk 0:01:34]} 21. e3 {[%clk 0:00:56]}  Ne5 {[%clk 0:01:04]} 22. Bxe5 {[%clk 0:00:52]}  Bxe5 {[%clk 0:00:58]} 23. Ng5 {[%clk 0:00:32]}  Rb4 {[%clk 0:00:42]} 24. b3 {[%clk 0:00:29]}  Qe7 {[%clk 0:00:21]} 25. f4 {[%clk 0:00:28]}  Bc7 {[%clk 0:00:20]} 26. a3 {[%clk 0:00:20]}  Re4 {[%clk 0:00:18]} 27. Nxe4 {[%clk 0:00:19]}  dxe4 {[%clk 0:00:18]} 28. Qc3 {[%clk 0:00:15]}  g5 {[%clk 0:00:16]} 29. f5 {[%clk 0:00:12]}  Be5 {[%clk 0:00:16]} 30. Qc4 {[%clk 0:00:09]}  Bc7 {[%clk 0:00:15]} 31. Qc3 {[%clk 0:00:07]}  f6 {[%clk 0:00:13]} 32. Rcd1 {[%clk 0:00:07]}  Re8 {[%clk 0:00:12]} 33. Rd2 {[%clk 0:00:05]}  Qe5 {[%clk 0:00:11]} 34. Qxe5 {[%clk 0:00:05]}  Bxe5 {[%clk 0:00:12]} 35. Rd7 {[%clk 0:00:05]}  Bb2 {[%clk 0:00:11]} 36. Rxb7 {[%clk 0:00:04]}  Bxa3 {[%clk 0:00:11]} 37. Rxa7 {[%clk 0:00:04]}  Bxc5 {[%clk 0:00:12]} 38. Rc7 {[%clk 0:00:05]}  Bxe3 {[%clk 0:00:12]} 39. Rxc6 {[%clk 0:00:05]}  Bf4 {[%clk 0:00:12]} 40. Rxf6 {[%clk 0:00:04]}  e3 {[%clk 0:00:13]} 41. Re6 {[%clk 0:00:05]}  Rb8 {[%clk 0:00:12]} 42. f6 {[%clk 0:00:03]}  Rxb3 {[%clk 0:00:12]} 43. Re7 {[%clk 0:00:02]}  Rb6 {[%clk 0:00:12]} 44. Rg7+ {[%clk 0:00:01]}  Kf8 {[%clk 0:00:12]} 45. Ra1 {[%clk 0:00:01]}  Rxf6 {[%clk 0:00:12]} 46. Rb7 {[%clk 0:00:01]}  Re6 {[%clk 0:00:11]} 47. Ra8+ {[%clk 0:00:02]}  Re8 {[%clk 0:00:12]} 48. Rxe8+ {[%clk 0:00:02]}  Kxe8 {[%clk 0:00:13]} 49. Kf3 {[%clk 0:00:03]}  Kd8 {[%clk 0:00:13]} 50. Ra7 {[%clk 0:00:03]}  Kc8 {[%clk 0:00:14]} 51. Rh7 {[%clk 0:00:04]}  Kd8 {[%clk 0:00:14]} 52. Rb7 {[%clk 0:00:04]}  Ke8 {[%clk 0:00:14]} 53. Ra7 {[%clk 0:00:04]}  Kf8 {[%clk 0:00:15]} 54. Rb7 {[%clk 0:00:04]}  Ke8 {[%clk 0:00:15]} 55. Ra7 {[%clk 0:00:05]}  Kd8 {[%clk 0:00:16]} 56. Rb7 {[%clk 0:00:06]}  Kc8 {[%clk 0:00:16]} 57. Rh7 {[%clk 0:00:06]}  Kb8 {[%clk 0:00:17]} 58. Rg7 {[%clk 0:00:06]} 1/2-1/2


[Site "https://www.chess.com"]

[Event "Titled Tuesday Blitz October 25 Late 2022"]
[White "Hambleton, Aman"]
[Black "Guz, Ari"]
[WhiteFideId "2606577"]
[BlackFideId "2825759"]
[WhiteElo "2538"]
[BlackElo "2205"]
[Result "1-0"]
[Round "05"]
[TimeControl "180+1"]
[Date "2022.10.26"]
[WhiteClock "0:00:03"]
[BlackClock "0:00:16"]

1. d4 {[%clk 0:03:00]}  d5 {[%clk 0:02:54]} 2. Bf4 {[%clk 0:03:01]}  e6 {[%clk 0:02:50]} 3. e3 {[%clk 0:03:01]}  Bd6 {[%clk 0:02:50]} 4. Nf3 {[%clk 0:03:01]}  Ne7 {[%clk 0:02:50]} 5. Bd3 {[%clk 0:03:01]}  O-O {[%clk 0:02:49]} 6. O-O {[%clk 0:03:02]}  c5 {[%clk 0:02:49]} 7. c3 {[%clk 0:03:02]}  b6 {[%clk 0:02:49]} 8. Qe2 {[%clk 0:03:00]}  a5 {[%clk 0:02:49]} 9. Nbd2 {[%clk 0:02:34]}  Bxf4 {[%clk 0:02:30]} 10. exf4 {[%clk 0:02:34]}  Ba6 {[%clk 0:02:30]} 11. Ng5 {[%clk 0:01:43]}  Bxd3 {[%clk 0:02:24]} 12. Qxd3 {[%clk 0:01:44]}  Ng6 {[%clk 0:02:18]} 13. g3 {[%clk 0:01:37]}  Nc6 {[%clk 0:02:15]} 14. Ndf3 {[%clk 0:01:16]}  cxd4 {[%clk 0:02:04]} 15. Nxd4 {[%clk 0:01:15]}  Nxd4 {[%clk 0:02:02]} 16. Qxd4 {[%clk 0:01:15]}  Rc8 {[%clk 0:01:56]} 17. Rad1 {[%clk 0:01:10]}  Rc4 {[%clk 0:01:35]} 18. Qd3 {[%clk 0:01:04]}  Qf6 {[%clk 0:01:28]} 19. Rfe1 {[%clk 0:00:40]}  Rxf4 {[%clk 0:01:04]} 20. gxf4 {[%clk 0:00:35]}  Qxf4 {[%clk 0:01:04]} 21. Qg3 {[%clk 0:00:29]}  Qf5 {[%clk 0:01:04]} 22. Nf3 {[%clk 0:00:19]}  Rc8 {[%clk 0:00:58]} 23. Kh1 {[%clk 0:00:17]}  b5 {[%clk 0:00:54]} 24. Nh4 {[%clk 0:00:17]}  Nxh4 {[%clk 0:00:51]} 25. Qxh4 {[%clk 0:00:18]}  b4 {[%clk 0:00:50]} 26. Re3 {[%clk 0:00:11]}  h6 {[%clk 0:00:42]} 27. Qg3 {[%clk 0:00:08]}  Rc4 {[%clk 0:00:38]} 28. Rd4 {[%clk 0:00:06]}  bxc3 {[%clk 0:00:31]} 29. bxc3 {[%clk 0:00:03]}  Rc6 {[%clk 0:00:28]} 30. Kg2 {[%clk 0:00:03]}  g6 {[%clk 0:00:26]} 31. Qb8+ {[%clk 0:00:03]}  Kh7 {[%clk 0:00:26]} 32. Rf3 {[%clk 0:00:03]}  Qg5+ {[%clk 0:00:24]} 33. Qg3 {[%clk 0:00:03]}  Qe7 {[%clk 0:00:24]} 34. h4 {[%clk 0:00:03]}  h5 {[%clk 0:00:24]} 35. Qe5 {[%clk 0:00:03]}  Rc7 {[%clk 0:00:23]} 36. Rf6 {[%clk 0:00:02]}  Rc4 {[%clk 0:00:19]} 37. Rxc4 {[%clk 0:00:02]}  dxc4 {[%clk 0:00:20]} 38. Rf4 {[%clk 0:00:02]}  Qb7+ {[%clk 0:00:19]} 39. Qe4 {[%clk 0:00:02]}  Qd7 {[%clk 0:00:17]} 40. Qf3 {[%clk 0:00:02]}  f5 {[%clk 0:00:17]} 41. Rd4 {[%clk 0:00:02]}  Qf7 {[%clk 0:00:17]} 42. Qf4 {[%clk 0:00:02]}  Qf6 {[%clk 0:00:17]} 43. Rd7+ {[%clk 0:00:02]}  Kg8 {[%clk 0:00:16]} 44. Qb8+ {[%clk 0:00:02]}  Qf8 {[%clk 0:00:16]} 45. Rd8 {[%clk 0:00:03]} 1-0


[Site "https://www.chess.com"]

[Event "Titled Tuesday Blitz October 25 Late 2022"]
[White "Hansen, Eric"]
[Black "Castellanos Gomez, Alejandro"]
[WhiteFideId "2606771"]
[BlackFideId "22284141"]
[WhiteElo "2568"]
[BlackElo "2168"]
[Result "1-0"]
[Round "05"]
[TimeControl "180+1"]
[Date "2022.10.26"]
[WhiteClock "0:01:13"]
[BlackClock "0:01:14"]

1. d4 {[%clk 0:03:00]}  e6 {[%clk 0:02:59]} 2. Nf3 {[%clk 0:03:00]}  Nf6 {[%clk 0:02:59]} 3. c4 {[%clk 0:03:00]}  d5 {[%clk 0:02:59]} 4. Nc3 {[%clk 0:03:00]}  Be7 {[%clk 0:02:59]} 5. Qc2 {[%clk 0:02:58]}  O-O {[%clk 0:02:58]} 6. g4 {[%clk 0:02:57]}  dxc4 {[%clk 0:02:52]} 7. e4 {[%clk 0:02:54]}  c5 {[%clk 0:02:52]} 8. g5 {[%clk 0:02:53]}  cxd4 {[%clk 0:02:37]} 9. gxf6 {[%clk 0:02:52]}  Bxf6 {[%clk 0:02:37]} 10. e5 {[%clk 0:02:52]}  Be7 {[%clk 0:02:27]} 11. Ne4 {[%clk 0:02:39]}  b5 {[%clk 0:02:22]} 12. Rg1 {[%clk 0:02:37]}  Bb7 {[%clk 0:02:07]} 13. Rg4 {[%clk 0:01:22]}  d3 {[%clk 0:02:02]} 14. Qd2 {[%clk 0:01:21]}  h5 {[%clk 0:01:56]} 15. Rxg7+ {[%clk 0:01:13]}  Kxg7 {[%clk 0:01:56]} 16. Qh6+ {[%clk 0:01:13]}  Kg8 {[%clk 0:01:57]} 17. Nf6+ {[%clk 0:01:13]}  Bxf6 {[%clk 0:01:38]} 18. exf6 {[%clk 0:01:13]}  Qxf6 {[%clk 0:01:14]} 19. Qxf6 {[%clk 0:01:13]} 1-0


[Site "https://www.chess.com"]